fUST/lending_fUST_20241125
["ID","MTS","AMOUNT","RATE_DAILY","PERIOD"]
[343285666,1732542643323,-500.0,0.00022749,2]
[343285668,1732542643332,-500.0,0.0002275,2]
[343285670,1732542643342,-500.0,0.00023023,2]
[343285672,1732542643351,-500.0,0.00023297,2]
[343285674,1732542643360,-3438.95543999,0.00023571,2]
[343285676,1732542643370,-500.0,0.00023571,2]
[343285678,1732542643379,-6121.08,0.00023845,2]
[343285680,1732542643389,-500.0,0.00023845,2]
[343285682,1732542643403,-4478.76456001,0.00024119,2]
[343285684,1732542643419,-1642.31543999,0.00024119,2]
[343285687,1732542643428,-500.0,0.00024119,2]
[343285689,1732542643437,-6121.08,0.00024393,2]
[343285691,1732542643447,-500.0,0.00024393,2]
[343285693,1732542643456,-6121.08,0.00024667,2]
[343285695,1732542643465,-6121.08,0.00024941,2]
[343285697,1732542643475,-6121.08,0.00025215,2]
[343285699,1732542643484,-6121.08,0.00025489,2]
[343285701,1732542643494,-6121.08,0.00025763,2]
[343285703,1732542643503,-6121.08,0.00026037,2]
[343285704,1732542643512,-6121.08,0.00026311,2]
[343285705,1732542643521,-6121.08,0.00026585,2]
[343285706,1732542643531,-6121.08,0.00026859,2]
[343285707,1732542643540,-6121.08,0.00027133,2]
[343285708,1732542643550,-6121.08,0.00027407,2]
[343285709,1732542643559,-151.0,0.0002911,2]
[343285710,1732542643568,-87558.20301632,0.00029353,10]
[343285711,1732542643584,-4847.50746736,0.00027681,2]
[343285712,1732542643596,-749.25718908,0.00027681,2]
[343285713,1732542643608,-524.31534356,0.00027681,2]
[343285714,1732542643618,-101523.67833796,0.00029353,10]
[343285715,1732542643629,-4104.98999999,0.00029353,10]
[343285716,1732542643641,-984.5458336,0.00029353,10]
[343285724,1732542646114,-500.0,0.00022202,2]
[343285725,1732542646123,-585.53,0.00022476,2]
[343285726,1732542646132,-753.3123902,0.00027955,2]
[343285727,1732542646190,-293.19945781,0.00027955,2]
[343285728,1732542646212,-4875.75,0.00027955,2]
[343285730,1732542678198,777.994885,0.0002166,2]
[343285731,1732543042745,24900.0,0.00021272,2]
[343285732,1732543061038,250.0,0.00021272,2]
[343285734,1732543197458,163.643838,0.00013973,2]
[343285737,1732543365938,518.663256,0.00021237,2]
[343285738,1732543366260,518.663256,0.00021922,2]
[343285739,1732543477360,182.644028,0.00020927,2]
[343285740,1732543491933,3000.0,0.00021201,2]
[343285743,1732543602100,-205.26467094,0.00022102,2]
[343285744,1732543602124,-30.48754266,0.00022198,2]
[343285760,1732543763779,15447.7189178,0.000212,2]
[343285769,1732543796488,-205.26467094,0.00022101,2]
[343285770,1732543796511,-269.0,0.00022197,2]
[343285771,1732543796535,-300.0,0.00022197,2]
[343285772,1732543796558,-500.0,0.00022198,2]
[343285773,1732543796583,-2671.85,0.00022198,2]
[343285774,1732543796604,-603.16,0.00022198,2]
[343285775,1732543796628,-1866.62,0.00022198,2]
[343285776,1732543796650,-500.0,0.00022198,2]
[343285777,1732543796674,-500.0,0.00022199,2]
[343285778,1732543796697,-500.0,0.00022199,2]
[343285779,1732543796719,-513.90231039,0.00022199,2]
[343285780,1732543796741,-500.0,0.00022199,2]
[343285781,1732543796764,-500.0,0.00022199,2]
[343285782,1732543796786,-500.0,0.00022199,2]
[343285783,1732543796808,-504.46391757,0.00022199,2]
[343285784,1732543796830,-507.86264105,0.00022199,2]
[343285785,1732543796851,-503.7608881,0.00022199,2]
[343285786,1732543796873,-500.0,0.00022199,2]
[343285787,1732543796894,-500.0,0.00022199,2]
[343285788,1732543796916,-210.54459702,0.00022199,2]
[343285789,1732543796937,-501.41787356,0.00022199,2]
[343285790,1732543796959,-501.58236021,0.00022199,2]
[343285791,1732543796980,-500.0,0.00022199,2]
[343285792,1732543797002,-500.0,0.00022199,2]
[343285793,1732543797029,-500.0,0.00022199,2]
[343285794,1732543797050,-500.0,0.00022199,2]
[343285795,1732543797073,-500.0,0.00022199,2]
[343285796,1732543797100,-500.0,0.00022199,2]
[343285797,1732543797121,-500.0,0.00022199,2]
[343285798,1732543797143,-500.0,0.00022199,2]
[343285799,1732543797164,-500.0,0.00022199,2]
[343285800,1732543797187,-179.86626278,0.00022199,2]
[343285801,1732543797209,-500.0,0.00022199,2]
[343285802,1732543797232,-500.0,0.00022199,2]
[343285803,1732543797254,-500.0,0.00022199,2]
[343285804,1732543797275,-500.0,0.00022199,2]
[343285805,1732543797296,-322.56073181,0.00022199,2]
[343285806,1732543797319,-500.0,0.00022199,2]
[343285807,1732543797343,-648.16244627,0.00022199,2]
[343285808,1732543797364,-500.0,0.00022199,2]
[343285809,1732543797386,-500.0,0.00022199,2]
[343285810,1732543797408,-546.86701139,0.00022199,2]
[343285811,1732543797430,-500.0,0.00022199,2]
[343285812,1732543797452,-500.0,0.00022199,2]
[343285813,1732543797474,-615.49714023,0.00022199,2]
[343285814,1732543797588,-500.0,0.00022199,2]
[343285815,1732543797610,-500.0,0.00022199,2]
[343285816,1732543797632,-500.0,0.00022199,2]
[343285817,1732543797654,-512.44495676,0.00022199,2]
[343285818,1732543797676,-500.0,0.00022199,2]
[343285819,1732543797699,-500.0,0.00022199,2]
[343285820,1732543797721,-500.0,0.00022199,2]
[343285821,1732543797742,-500.0,0.00022199,2]
[343285822,1732543797769,-500.0,0.00022199,2]
[343285823,1732543797791,-500.0,0.00022199,2]
[343285824,1732543797813,-526.97958898,0.00022199,2]
[343285825,1732543797837,-500.0,0.00022199,2]
[343285826,1732543797860,-297.12870251,0.00022199,2]
[343285827,1732543797884,-500.0,0.00022199,2]
[343285828,1732543797907,-500.0,0.00022199,2]
[343285829,1732543797929,-500.0,0.00022199,2]
[343285830,1732543797952,-500.0,0.00022199,2]
[343285831,1732543797975,-500.0,0.00022199,2]
[343285832,1732543797997,-500.0,0.00022199,2]
[343285833,1732543798021,-500.0,0.00022199,2]
[343285834,1732543798043,-500.0,0.00022199,2]
[343285835,1732543798068,-5534.95,0.00022199,2]
[343285836,1732543798091,-500.0,0.00022199,2]
[343285837,1732543798114,-567.52508243,0.00022199,2]
[343285838,1732543798136,-523.76420702,0.00022199,2]
[343285839,1732543798158,-500.0,0.00022199,2]
[343285840,1732543798180,-500.0,0.00022199,2]
[343285841,1732543798202,-500.0,0.00022199,2]
[343285842,1732543798224,-500.0,0.00022199,2]
[343285843,1732543798247,-500.0,0.00022199,2]
[343285844,1732543798269,-500.0,0.00022199,2]
[343285845,1732543798292,-500.0,0.00022199,2]
[343285846,1732543798314,-500.0,0.00022199,2]
[343285847,1732543798338,-500.0,0.00022199,2]
[343285848,1732543798359,-500.0,0.00022199,2]
[343285849,1732543798380,-500.0,0.00022199,2]
[343285850,1732543798402,-500.0,0.00022199,2]
[343285851,1732543798425,-500.0,0.00022199,2]
[343285852,1732543798447,-500.0,0.00022199,2]
[343285853,1732543798470,-500.0,0.00022199,2]
[343285854,1732543798492,-500.0,0.00022199,2]
[343285855,1732543798513,-500.0,0.00022199,2]
[343285856,1732543798534,-500.0,0.00022199,2]
[343285857,1732543798558,-500.0,0.00022199,2]
[343285858,1732543798582,-500.0,0.00022199,2]
[343285859,1732543798603,-500.0,0.00022199,2]
[343285860,1732543798624,-500.0,0.00022199,2]
[343285861,1732543798645,-500.0,0.00022199,2]
[343285862,1732543798667,-500.0,0.00022199,2]
[343285863,1732543798689,-500.0,0.00022199,2]
[343285864,1732543798713,-500.0,0.00022199,2]
[343285865,1732543798735,-500.0,0.00022199,2]
[343285866,1732543798756,-500.0,0.00022199,2]
[343285867,1732543798777,-500.0,0.00022199,2]
[343285868,1732543798798,-181.4025163,0.000222,2]
[343285869,1732543798819,-501.70961904,0.000222,2]
[343285870,1732543798843,-500.0,0.000222,2]
[343285871,1732543798865,-500.0,0.000222,2]
[343285872,1732543798886,-500.0,0.000222,2]
[343285873,1732543798908,-553.78,0.000222,2]
[343285874,1732543798930,-500.0,0.000222,2]
[343285875,1732543798952,-500.0,0.000222,2]
[343285876,1732543798974,-500.0,0.000222,2]
[343285877,1732543798996,-500.0,0.000222,2]
[343285878,1732543799020,-500.0,0.000222,2]
[343285879,1732543799043,-500.0,0.000222,2]
[343285880,1732543799065,-621.085771,0.000222,2]
[343285881,1732543799088,-388.45324747,0.000222,2]
[343285882,1732543799110,-507.22808955,0.000222,2]
[343285883,1732543799132,-513.66636381,0.000222,2]
[343285884,1732543799153,-505.15531957,0.000222,2]
[343285885,1732543799175,-509.94735434,0.000222,2]
[343285886,1732543799198,-504.9996068,0.000222,2]
[343285887,1732543799219,-500.0,0.000222,2]
[343285888,1732543799241,-552.08677914,0.000222,2]
[343285889,1732543799263,-500.0,0.000222,2]
[343285890,1732543799284,-505.15987744,0.000222,2]
[343285891,1732543799306,-500.0,0.000222,2]
[343285892,1732543799328,-479.23762056,0.000222,2]
[343285893,1732543799354,-500.0,0.000222,2]
[343285894,1732543799376,-512.49136128,0.000222,2]
[343285895,1732543799397,-502.33611197,0.000222,2]
[343285896,1732543799418,-500.0,0.000222,2]
[343285897,1732543799440,-500.0,0.000222,2]
[343285898,1732543799461,-500.0,0.000222,2]
[343285899,1732543799484,-500.0,0.000222,2]
[343285900,1732543799591,-500.0,0.000222,2]
[343285901,1732543799613,-508.8901065,0.000222,2]
[343285902,1732543799635,-500.0,0.000222,2]
[343285903,1732543799657,-500.0,0.000222,2]
[343285904,1732543799680,-500.0,0.000222,2]
[343285905,1732543799702,-500.0,0.000222,2]
[343285906,1732543799724,-200.0,0.000222,2]
[343285907,1732543799746,-500.0,0.000222,2]
[343285908,1732543799768,-500.0,0.000222,2]
[343285909,1732543799789,-510.86230016,0.000222,2]
[343285910,1732543799811,-500.0,0.000222,2]
[343285911,1732543799836,-487.43029564,0.000222,2]
[343285912,1732543799858,-500.0,0.000222,2]
[343285913,1732543799879,-273.05495872,0.000222,2]
[343285914,1732543799901,-510.37430709,0.000222,2]
[343285915,1732543799922,-501.16286068,0.000222,2]
[343285916,1732543799946,-500.0,0.000222,2]
[343285917,1732543799969,-508.10297437,0.000222,2]
[343285918,1732543799992,-500.0,0.000222,2]
[343285919,1732543800017,-501.88566522,0.000222,2]
[343285920,1732543800043,-500.0,0.000222,2]
[343285921,1732543800068,-500.0,0.000222,2]
[343285922,1732543800095,-500.0,0.000222,2]
[343285923,1732543800116,-500.0,0.000222,2]
[343285924,1732543800139,-500.0,0.000222,2]
[343285925,1732543800163,-500.0,0.000222,2]
[343285926,1732543800186,-500.0,0.000222,2]
[343285927,1732543800224,-500.0,0.000222,2]
[343285928,1732543800249,-500.0,0.000222,2]
[343285929,1732543800274,-500.0,0.000222,2]
[343285930,1732543800298,-500.0,0.000222,2]
[343285931,1732543800322,-500.0,0.000222,2]
[343285932,1732543800349,-413.13891493,0.000222,2]
[343285933,1732543800373,-500.0,0.000222,2]
[343285934,1732543800397,-500.0,0.000222,2]
[343285935,1732543800421,-500.0,0.000222,2]
[343285936,1732543800444,-500.0,0.000222,2]
[343285937,1732543800467,-500.0,0.000222,2]
[343285938,1732543800489,-389.26028735,0.000222,2]
[343285939,1732543800512,-500.0,0.000222,2]
[343285940,1732543800535,-500.0,0.000222,2]
[343285941,1732543800559,-500.0,0.000222,2]
[343285942,1732543800586,-500.0,0.000222,2]
[343285943,1732543800609,-500.0,0.000222,2]
[343285944,1732543800631,-500.0,0.000222,2]
[343285945,1732543800654,-500.0,0.000222,2]
[343285946,1732543800676,-500.0,0.000222,2]
[343285947,1732543800699,-500.0,0.000222,2]
[343285948,1732543800721,-500.0,0.000222,2]
[343285949,1732543800744,-500.0,0.000222,2]
[343285950,1732543800766,-500.0,0.000222,2]
[343285951,1732543800788,-500.0,0.000222,2]
[343285952,1732543800810,-578.44764423,0.000222,2]
[343285953,1732543800837,-500.0,0.000222,2]
[343285954,1732543800860,-500.0,0.000222,2]
[343285955,1732543800882,-500.0,0.000222,2]
[343285956,1732543800906,-503.59493231,0.000222,2]
[343285957,1732543800929,-500.0,0.000222,2]
[343285958,1732543800952,-632.57312107,0.000222,2]
[343285959,1732543800974,-500.0,0.000222,2]
[343285960,1732543800996,-500.0,0.000222,2]
[343285961,1732543801020,-500.0,0.000222,2]
[343285962,1732543801041,-515.46280135,0.000222,2]
[343285963,1732543801065,-500.0,0.000222,2]
[343285964,1732543801091,-500.0,0.000222,2]
[343285965,1732543801114,-500.0,0.000222,2]
[343285966,1732543801137,-500.0,0.000222,2]
[343285967,1732543801160,-500.0,0.000222,2]
[343285968,1732543801182,-500.0,0.000222,2]
[343285969,1732543801204,-500.0,0.000222,2]
[343285970,1732543801225,-500.0,0.000222,2]
[343285971,1732543801246,-500.0,0.000222,2]
[343285972,1732543801267,-500.0,0.000222,2]
[343285973,1732543801288,-500.0,0.000222,2]
[343285974,1732543801310,-500.0,0.000222,2]
[343285975,1732543801334,-574.32348132,0.000222,2]
[343285976,1732543801356,-500.0,0.000222,2]
[343285977,1732543801377,-500.0,0.000222,2]
[343285978,1732543801400,-500.0,0.000222,2]
[343285979,1732543801422,-500.0,0.000222,2]
[343285980,1732543801444,-500.0,0.000222,2]
[343285981,1732543801466,-500.0,0.000222,2]
[343285982,1732543801586,-551.36425752,0.000222,2]
[343285983,1732543801608,-500.0,0.000222,2]
[343285984,1732543801630,-500.0,0.000222,2]
[343285985,1732543801652,-500.0,0.000222,2]
[343285986,1732543801674,-500.0,0.000222,2]
[343285987,1732543801695,-500.0,0.000222,2]
[343285988,1732543801718,-500.0,0.000222,2]
[343285989,1732543801739,-500.0,0.000222,2]
[343285990,1732543801761,-500.0,0.000222,2]
[343285991,1732543801782,-500.0,0.000222,2]
[343285992,1732543801804,-500.0,0.000222,2]
[343285993,1732543801826,-500.0,0.000222,2]
[343285994,1732543801851,-500.0,0.000222,2]
[343285995,1732543801874,-500.0,0.000222,2]
[343285996,1732543801896,-500.0,0.000222,2]
[343285997,1732543801919,-500.0,0.000222,2]
[343285998,1732543801941,-543.37531222,0.000222,2]
[343285999,1732543801964,-500.0,0.000222,2]
[343286000,1732543801986,-475.70238191,0.000222,2]
[343286001,1732543802010,-500.0,0.000222,2]
[343286002,1732543802034,-500.0,0.000222,2]
[343286003,1732543802057,-500.0,0.000222,2]
[343286004,1732543802083,-500.0,0.000222,2]
[343286005,1732543802108,-500.0,0.000222,2]
[343286006,1732543802131,-500.0,0.000222,2]
[343286007,1732543802154,-500.0,0.000222,2]
[343286008,1732543802176,-500.0,0.000222,2]
[343286009,1732543802198,-500.0,0.000222,2]
[343286010,1732543802220,-500.0,0.000222,2]
[343286011,1732543802242,-588.84718053,0.000222,2]
[343286012,1732543802264,-500.0,0.000222,2]
[343286013,1732543802287,-500.0,0.000222,2]
[343286014,1732543802310,-332.51842615,0.000222,2]
[343286015,1732543802337,-500.0,0.000222,2]
[343286016,1732543802362,-500.0,0.000222,2]
[343286017,1732543802385,-925.88,0.000222,2]
[343286018,1732543802408,-500.0,0.000222,2]
[343286019,1732543802430,-500.0,0.000222,2]
[343286020,1732543802453,-500.0,0.000222,2]
[343286021,1732543802476,-500.0,0.000222,2]
[343286022,1732543802500,-500.0,0.000222,2]
[343286023,1732543802525,-500.0,0.000222,2]
[343286024,1732543802551,-500.0,0.000222,2]
[343286025,1732543802575,-250.0,0.000222,2]
[343286026,1732543802600,-547.51,0.000222,2]
[343286027,1732543802624,-500.0,0.000222,2]
[343286028,1732543802646,-500.0,0.000222,2]
[343286029,1732543802668,-500.0,0.000222,2]
[343286030,1732543802691,-500.0,0.000222,2]
[343286031,1732543802712,-500.0,0.000222,2]
[343286032,1732543802734,-500.0,0.000222,2]
[343286033,1732543802756,-500.0,0.000222,2]
[343286034,1732543802779,-500.0,0.000222,2]
[343286035,1732543802801,-500.0,0.000222,2]
[343286036,1732543802825,-500.0,0.000222,2]
[343286037,1732543802853,-500.0,0.000222,2]
[343286038,1732543802878,-786.12,0.000222,2]
[343286039,1732543802901,-500.0,0.000222,2]
[343286040,1732543802925,-500.0,0.000222,2]
[343286041,1732543802947,-500.0,0.000222,2]
[343286042,1732543802971,-500.0,0.000222,2]
[343286043,1732543802993,-583.01575918,0.000222,2]
[343286044,1732543803018,-500.0,0.000222,2]
[343286045,1732543803053,-500.0,0.000222,2]
[343286046,1732543803078,-500.0,0.000222,2]
[343286047,1732543803106,-500.0,0.000222,2]
[343286048,1732543803132,-500.0,0.000222,2]
[343286049,1732543803155,-500.0,0.000222,2]
[343286050,1732543803178,-500.0,0.000222,2]
[343286051,1732543803200,-500.0,0.000222,2]
[343286052,1732543803224,-500.0,0.000222,2]
[343286053,1732543803248,-500.0,0.000222,2]
[343286054,1732543803269,-500.0,0.000222,2]
[343286055,1732543803291,-500.0,0.000222,2]
[343286056,1732543803314,-500.0,0.000222,2]
[343286057,1732543803340,-543.28815883,0.000222,2]
[343286058,1732543803362,-500.0,0.000222,2]
[343286059,1732543803384,-500.0,0.000222,2]
[343286060,1732543803409,-500.0,0.000222,2]
[343286061,1732543803518,-500.0,0.000222,2]
[343286062,1732543803544,-500.0,0.000222,2]
[343286063,1732543803570,-500.0,0.000222,2]
[343286064,1732543803597,-500.0,0.000222,2]
[343286065,1732543803621,-500.0,0.000222,2]
[343286066,1732543803646,-500.0,0.000222,2]
[343286067,1732543803670,-346.09923096,0.000222,2]
[343286068,1732543803694,-500.0,0.000222,2]
[343286069,1732543803717,-500.0,0.000222,2]
[343286070,1732543803740,-500.0,0.000222,2]
[343286071,1732543803763,-532.36462773,0.000222,2]
[343286072,1732543803788,-500.0,0.000222,2]
[343286073,1732543803812,-500.0,0.000222,2]
[343286074,1732543803839,-500.0,0.000222,2]
[343286075,1732543803862,-535.40036255,0.000222,2]
[343286076,1732543803885,-500.0,0.000222,2]
[343286077,1732543803911,-500.0,0.000222,2]
[343286078,1732543803935,-500.0,0.000222,2]
[343286079,1732543803959,-500.0,0.000222,2]
[343286080,1732543803984,-382.03215184,0.000222,2]
[343286081,1732543804009,-500.0,0.000222,2]
[343286082,1732543804037,-500.0,0.000222,2]
[343286083,1732543804060,-500.0,0.000222,2]
[343286084,1732543804087,-500.0,0.000222,2]
[343286085,1732543804112,-500.0,0.000222,2]
[343286086,1732543804138,-5493.43,0.000222,2]
[343286087,1732543804163,-500.0,0.000222,2]
[343286088,1732543804189,-500.0,0.000222,2]
[343286089,1732543804214,-500.0,0.000222,2]
[343286090,1732543804239,-500.0,0.000222,2]
[343286091,1732543804263,-500.0,0.000222,2]
[343286092,1732543804287,-500.0,0.000222,2]
[343286093,1732543804310,-500.0,0.000222,2]
[343286094,1732543804336,-529.34337181,0.000222,2]
[343286095,1732543804359,-500.0,0.000222,2]
[343286096,1732543804384,-500.0,0.000222,2]
[343286097,1732543804410,-500.0,0.000222,2]
[343286098,1732543804434,-503.15018423,0.000222,2]
[343286099,1732543804459,-156.74227463,0.000222,2]
[343286100,1732543804484,-1392.18,0.000222,2]
[343286101,1732543804508,-585.5056277,0.000222,2]
[343286102,1732543804532,-500.89376865,0.000222,2]
[343286103,1732543804557,-500.0,0.000222,2]
[343286104,1732543804584,-500.0,0.000222,2]
[343286105,1732543804608,-500.0,0.000222,2]
[343286106,1732543804632,-500.0,0.000222,2]
[343286107,1732543804661,-500.0,0.000222,2]
[343286108,1732543804695,-566.76317535,0.000222,2]
[343286109,1732543804743,-500.0,0.000222,2]
[343286110,1732543804775,-500.0,0.000222,2]
[343286111,1732543804804,-500.0,0.000222,2]
[343286112,1732543804832,-500.0,0.000222,2]
[343286113,1732543804858,-500.0,0.000222,2]
[343286114,1732543804928,-500.0,0.000222,2]
[343286115,1732543804977,-586.82,0.00022201,2]
[343286116,1732543805029,-500.0,0.00022201,2]
[343286117,1732543805061,-500.0,0.00022201,2]
[343286118,1732543805087,-500.0,0.00022201,2]
[343286119,1732543805137,-500.0,0.00022201,2]
[343286120,1732543805162,-517.46794204,0.00022201,2]
[343286121,1732543805187,-546.69541275,0.00022201,2]
[343286122,1732543805210,-500.0,0.00022201,2]
[343286123,1732543805233,-500.0,0.00022201,2]
[343286124,1732543805256,-500.0,0.00022201,2]
[343286125,1732543805280,-500.0,0.00022201,2]
[343286126,1732543805308,-500.0,0.00022201,2]
[343286127,1732543805332,-171.57103316,0.00022201,2]
[343286128,1732543805355,-173.56913236,0.00022201,2]
[343286129,1732543805378,-172.72209195,0.00022201,2]
[343286130,1732543805400,-184.11005947,0.00022201,2]
[343286131,1732543805422,-500.0,0.00022201,2]
[343286132,1732543805445,-500.0,0.00022201,2]
[343286133,1732543805468,-500.0,0.00022201,2]
[343286134,1732543805492,-500.0,0.00022201,2]
[343286135,1732543805515,-500.0,0.00022201,2]
[343286136,1732543805537,-500.0,0.00022201,2]
[343286137,1732543805626,-500.0,0.00022201,2]
[343286138,1732543805664,-500.0,0.00022201,2]
[343286139,1732543805687,-500.0,0.00022201,2]
[343286140,1732543805710,-500.0,0.00022201,2]
[343286141,1732543805734,-500.0,0.00022201,2]
[343286142,1732543805757,-500.0,0.00022201,2]
[343286143,1732543805779,-500.0,0.00022201,2]
[343286144,1732543805802,-550.0,0.00022201,2]
[343286145,1732543805825,-500.0,0.00022201,2]
[343286146,1732543805851,-500.0,0.00022201,2]
[343286147,1732543805875,-500.0,0.00022201,2]
[343286148,1732543805897,-500.0,0.00022201,2]
[343286149,1732543805921,-500.0,0.00022201,2]
[343286150,1732543805944,-500.0,0.00022201,2]
[343286151,1732543805969,-500.0,0.00022201,2]
[343286152,1732543805994,-500.0,0.00022201,2]
[343286153,1732543806020,-500.0,0.00022201,2]
[343286154,1732543806046,-1006.1,0.00022201,2]
[343286155,1732543806073,-500.0,0.00022201,2]
[343286156,1732543806100,-500.0,0.00022201,2]
[343286157,1732543806123,-500.0,0.00022201,2]
[343286158,1732543806146,-500.0,0.00022201,2]
[343286159,1732543806170,-500.0,0.00022201,2]
[343286160,1732543806195,-500.0,0.00022201,2]
[343286161,1732543806220,-500.0,0.00022201,2]
[343286162,1732543806245,-500.0,0.00022201,2]
[343286163,1732543806269,-593.31,0.00022201,2]
[343286164,1732543806294,-500.0,0.00022201,2]
[343286165,1732543806318,-500.0,0.00022201,2]
[343286166,1732543806345,-500.0,0.00022201,2]
[343286167,1732543806369,-500.0,0.00022201,2]
[343286168,1732543806394,-500.0,0.00022201,2]
[343286169,1732543806418,-500.0,0.00022201,2]
[343286170,1732543806442,-500.0,0.00022201,2]
[343286171,1732543806466,-500.0,0.00022202,2]
[343286172,1732543806490,-501.84005463,0.00022202,2]
[343286173,1732543806514,-501.73719691,0.00022202,2]
[343286174,1732543806537,-502.4611511,0.00022202,2]
[343286175,1732543806562,-510.88382322,0.00022202,2]
[343286176,1732543806588,-503.11357213,0.00022202,2]
[343286177,1732543806613,-587.59794661,0.00022202,2]
[343286178,1732543806638,-500.0,0.00022202,2]
[343286179,1732543806661,-504.80077687,0.00022202,2]
[343286180,1732543806686,-500.0,0.00022202,2]
[343286181,1732543806711,-500.0,0.00022202,2]
[343286182,1732543806735,-500.0,0.00022202,2]
[343286183,1732543806760,-500.0,0.00022202,2]
[343286184,1732543806785,-500.0,0.00022202,2]
[343286185,1732543806810,-500.0,0.00022202,2]
[343286186,1732543806838,-500.0,0.00022202,2]
[343286187,1732543806865,-500.0,0.00022202,2]
[343286188,1732543806889,-500.0,0.00022202,2]
[343286189,1732543806915,-500.0,0.00022202,2]
[343286190,1732543806940,-500.0,0.00022202,2]
[343286191,1732543806965,-500.0,0.00022202,2]
[343286192,1732543806991,-500.0,0.00022202,2]
[343286193,1732543807017,-500.0,0.00022202,2]
[343286194,1732543807050,-503.43563559,0.00022202,2]
[343286195,1732543807078,-500.0,0.00022202,2]
[343286196,1732543807130,-500.0,0.00022202,2]
[343286197,1732543807160,-585.61770807,0.00022202,2]
[343286198,1732543807186,-500.0,0.00022202,2]
[343286199,1732543807221,-500.0,0.00022202,2]
[343286200,1732543807246,-407.91146285,0.00022202,2]
[343286201,1732543807282,-500.0,0.00022202,2]
[343286202,1732543807306,-501.72878971,0.00022202,2]
[343286203,1732543807330,-500.0,0.00022202,2]
[343286204,1732543807359,-500.0,0.00022202,2]
[343286205,1732543807384,-500.0,0.00022202,2]
[343286206,1732543807410,-500.0,0.00022202,2]
[343286207,1732543807435,-500.0,0.00022202,2]
[343286208,1732543807470,-500.0,0.00022202,2]
[343286209,1732543807512,-500.0,0.00022202,2]
[343286210,1732543807539,-500.0,0.00022202,2]
[343286211,1732543807650,-500.0,0.00022202,2]
[343286212,1732543807691,-500.0,0.00022202,2]
[343286213,1732543807719,-500.0,0.00022202,2]
[343286214,1732543807745,-500.0,0.00022202,2]
[343286215,1732543807771,-500.0,0.00022202,2]
[343286216,1732543807797,-500.0,0.00022202,2]
[343286217,1732543807830,-500.0,0.00022202,2]
[343286218,1732543807871,-500.0,0.00022202,2]
[343286219,1732543807914,-525.20887217,0.00022202,2]
[343286220,1732543807939,-500.0,0.00022202,2]